fUSD/lending_fUSD_20251105
["ID","MTS","AMOUNT","RATE_DAILY","PERIOD"]
[393186949,1762305041291,-500.0,0.00022616,2]
[393186950,1762305041302,-508.66972203,0.00022622,2]
[393186951,1762305041315,-1000.0,0.00022622,2]
[393186952,1762305041326,-433.0,0.00022631,2]
[393186953,1762305041336,-534.0,0.00022631,2]
[393186954,1762305041347,-400.0,0.00022656,2]
[393186955,1762305041358,-433.0,0.00022768,2]
[393186956,1762305041368,-534.0,0.00022768,2]
[393186957,1762305041379,-151.0,0.00022861,7]
[393186958,1762305041392,-157.96172807,0.00022864,2]
[393186959,1762305041403,-500.0,0.00022864,2]
[393186960,1762305041414,-681.3398245,0.00022871,2]
[393186961,1762305041424,-433.0,0.00022905,2]
[393186962,1762305041434,-534.0,0.00022905,2]
[393186963,1762305041447,-150.0,0.00022988,2]
[393186964,1762305041458,-2000.0,0.00023,2]
[393186965,1762305041469,-433.0,0.00023042,2]
[393186966,1762305041479,-534.0,0.00023042,2]
[393186967,1762305041490,-590.04489551,0.00023067,2]
[393186968,1762305041501,-1500.0,0.00023067,2]
[393186969,1762305041512,-214.84688281,0.00023067,2]
[393186970,1762305041522,-1141.98943615,0.00023067,2]
[393186971,1762305041535,-1500.0,0.00023067,2]
[393186972,1762305041547,-11261.21723386,0.00023108,2]
[393186973,1762305041557,-1500.0,0.0002317,2]
[393186974,1762305041568,-433.0,0.00023179,2]
[393186975,1762305041579,-534.0,0.00023179,2]
[393186976,1762305041590,-500.0,0.00023217,2]
[393186977,1762305041601,-108369.0028497,0.00023218,2]
[393186978,1762305041613,-150.0,0.00023262,2]
[393186979,1762305041625,-500.0,0.00023273,2]
[393186980,1762305041636,-500.0,0.00023273,2]
[393186981,1762305041648,-500.0,0.00023273,2]
[393186982,1762305041659,-170.97892851,0.00023273,2]
[393186983,1762305041671,-500.0,0.00023273,2]
[393186984,1762305041682,-500.0,0.00023273,2]
[393186985,1762305041693,-564.79627528,0.00023273,2]
[393186986,1762305041703,-500.0,0.00023273,2]
[393186987,1762305041714,-500.0,0.00023273,2]
[393186988,1762305041724,-500.0,0.00023273,2]
[393186989,1762305041736,-500.0,0.00023273,2]
[393186990,1762305041746,-500.0,0.00023273,2]
[393186991,1762305041757,-500.0,0.00023273,2]
[393186992,1762305041767,-500.0,0.00023273,2]
[393186993,1762305041777,-211.36154485,0.00023273,2]
[393186994,1762305041787,-502.80687034,0.00023273,2]
[393186995,1762305041797,-500.0,0.00023273,2]
[393186996,1762305041808,-500.0,0.00023273,2]
[393186997,1762305041818,-500.0,0.00023273,2]
[393186998,1762305041828,-150.0,0.00023273,2]
[393186999,1762305041838,-500.0,0.00023273,2]
[393187000,1762305041849,-500.0,0.00023273,2]
[393187001,1762305041859,-561.51407655,0.00023273,2]
[393187002,1762305041872,-500.0,0.00023273,2]
[393187003,1762305041883,-433.0,0.00023316,2]
[393187004,1762305041893,-534.0,0.00023316,2]
[393187005,1762305041903,-600.0,0.00023341,2]
[393187006,1762305041914,-300.0,0.00023428,2]
[393187007,1762305041924,-433.0,0.00023453,2]
[393187008,1762305041935,-534.0,0.00023453,2]
[393187009,1762305041945,-823.0,0.00023476,2]
[393187010,1762305041956,-433.0,0.0002359,2]
[393187011,1762305041967,-534.0,0.0002359,2]
[393187012,1762305041977,-2000.0,0.00023615,2]
[393187013,1762305041987,-2000.0,0.00023615,2]
[393187014,1762305041998,-2751.0,0.0002365,2]
[393187015,1762305042008,-500.0,0.00023653,2]
[393187016,1762305042019,-1000.0,0.00023718,2]
[393187017,1762305042030,-433.0,0.00023727,2]
[393187018,1762305042040,-534.0,0.00023727,2]
[393187019,1762305042050,-500.0,0.00023737,2]
[393187020,1762305042060,-560.07491628,0.00023737,2]
[393187021,1762305042070,-509.8687602,0.00023821,2]
[393187022,1762305042080,-1000.0,0.00023821,2]
[393187023,1762305042091,-1000.0,0.00023821,2]
[393187024,1762305042101,-1010.91373143,0.00023821,2]
[393187025,1762305042111,-1000.0,0.00023821,2]
[393187026,1762305042122,-1000.0,0.00023821,2]
[393187027,1762305042132,-1000.0,0.00023821,2]
[393187028,1762305042142,-1000.0,0.00023821,2]
[393187029,1762305042153,-1000.0,0.00023821,2]
[393187030,1762305042163,-500.0,0.00023821,2]
[393187031,1762305042173,-1000.0,0.00023821,2]
[393187032,1762305042183,-1000.0,0.00023821,2]
[393187033,1762305042193,-1000.0,0.00023821,2]
[393187034,1762305042203,-912.69216128,0.00023821,2]
[393187035,1762305042213,-150.0,0.00023821,2]
[393187036,1762305042223,-1000.0,0.00023821,2]
[393187037,1762305042233,-1001.89466476,0.00023821,2]
[393187038,1762305042243,-1000.0,0.00023821,2]
[393187039,1762305042253,-3292.0,0.00023822,2]
[393187040,1762305042263,-433.0,0.00023864,2]
[393187041,1762305042273,-534.0,0.00023864,2]
[393187042,1762305042283,-708.04145389,0.00023943,2]
[393187043,1762305042292,-433.0,0.00024001,2]
[393187044,1762305042302,-534.0,0.00024001,2]
[393187045,1762305042316,-595.95234334,0.00024026,2]
[393187047,1762305042326,-156.16,0.00024078,2]
[393187049,1762305042337,-1055.0,0.000241,2]
[393187051,1762305042347,-433.0,0.00024138,2]
[393187052,1762305042358,-534.0,0.00024138,2]
[393187053,1762305042368,-195.78948399,0.00024163,2]
[393187054,1762305042380,-2500.0,0.00024163,2]
[393187055,1762305042390,-220.70473241,0.00024234,2]
[393187056,1762305042401,-433.0,0.00024275,2]
[393187057,1762305042411,-534.0,0.00024275,2]
[393187058,1762305042421,-151.0,0.00024368,7]
[393187059,1762305042431,-151.0,0.00024368,7]
[393187061,1762305042442,-151.0,0.00024368,7]
[393187062,1762305042452,-151.0,0.00024368,7]
[393187063,1762305042463,-151.0,0.00024368,7]
[393187064,1762305042474,-151.0,0.00024368,7]
[393187065,1762305042485,-151.0,0.00024368,7]
[393187066,1762305042495,-151.0,0.00024368,7]
[393187067,1762305042507,-151.0,0.00024368,7]
[393187068,1762305042517,-324.80016676,0.00024368,2]
[393187069,1762305042527,-1500.0,0.00024368,2]
[393187070,1762305042538,-1500.0,0.00024368,2]
[393187071,1762305042548,-334.36236611,0.00024368,2]
[393187072,1762305042558,-288.26297983,0.00024368,2]
[393187073,1762305042568,-1500.0,0.00024368,2]
[393187074,1762305042578,-1500.0,0.00024368,2]
[393187075,1762305042588,-1020.07954726,0.00024368,2]
[393187076,1762305042599,-799.13836372,0.00024368,2]
[393187077,1762305042609,-523.90862706,0.00024368,2]
[393187078,1762305042620,-150.0,0.00024368,2]
[393187079,1762305042631,-1500.0,0.00024368,2]
[393187080,1762305042642,-1389.73286434,0.00024368,2]
[393187081,1762305042652,-1000.0,0.0002439,2]
[393187082,1762305042663,-433.0,0.00024412,2]
[393187083,1762305042673,-534.0,0.00024412,2]
[393187084,1762305042684,-264.812832,0.00024412,7]
[393187085,1762305042694,-11784.68355286,0.00024466,2]
[393187086,1762305042705,-439.14466624,0.00024549,2]
[393187087,1762305042715,-544.89159977,0.00024549,2]
[393187088,1762305042725,-220.70473241,0.00024637,2]
[393187089,1762305042736,-845.72779064,0.00024642,2]
[393187090,1762305042747,-500.0,0.00024657,2]
[393187091,1762305042757,-500.0,0.00024657,2]
[393187092,1762305042768,-1000.0,0.00024658,2]
[393187093,1762305043102,-150.0,0.00024658,2]
[393187094,1762305043118,-845.72779065,0.00024666,2]
[393187095,1762305043130,-196.0,0.00024666,2]
[393187096,1762305043140,-2278.73871483,0.000247,2]
[393187097,1762305043150,-3000.0,0.00024711,2]
[393187098,1762305043159,-775.21965,0.0002475,2]
[393187099,1762305043169,-542.89918106,0.00024773,2]
[393187100,1762305043178,-500.0,0.00024773,2]
[393187101,1762305043187,-500.0,0.00024773,2]
[393187102,1762305043196,-500.0,0.00024773,2]
[393187103,1762305043205,-500.0,0.00024773,2]
[393187104,1762305043215,-500.0,0.00024773,2]
[393187105,1762305043225,-500.0,0.00024773,2]
[393187106,1762305043234,-500.0,0.00024773,2]
[393187107,1762305043243,-172.16017549,0.00024773,2]
[393187108,1762305043252,-5019.0,0.00024781,2]
[393187109,1762305043261,-11261.21723379,0.00024781,2]
[393187110,1762305043271,-2278.73871483,0.0002479,2]
[393187111,1762305043280,-150.0,0.00024795,2]
[393187112,1762305043289,-500.0,0.00024799,2]
[393187113,1762305043299,-500.0,0.00024799,2]
[393187114,1762305043310,-151.0,0.000248,7]
[393187115,1762305043319,-181011.000808,0.000248,3]
[393187116,1762305043329,-163.166422,0.000248,7]
[393187117,1762305043338,-151.0,0.000248,7]
[393187118,1762305043348,-151.0,0.000248,7]
[393187119,1762305043359,-264.812832,0.000248,7]
[393187120,1762305043369,-775.21966,0.0002481,2]
[393187121,1762305043380,-220.70473243,0.0002486,2]
[393187122,1762305043392,-2278.73871483,0.0002488,2]
[393187123,1762305043401,-15084.2500673,0.0002489,3]
[393187124,1762305043411,-30168.5001347,0.00024892,3]
[393187125,1762305043421,-151.0,0.000249,7]
[393187126,1762305043430,-151.0,0.000249,7]
[393187127,1762305043440,-151.0,0.000249,7]
[393187128,1762305043449,-151.0,0.000249,7]
[393187129,1762305043459,-151.0,0.000249,7]
[393187130,1762305043468,-166.06285,0.000249,7]
[393187131,1762305043478,-151.0,0.000249,7]
[393187132,1762305043488,-151.0,0.000249,7]
[393187133,1762305043497,-178.096022,0.000249,7]
[393187134,1762305043507,-288.942857,0.000249,7]
[393187135,1762305043518,-288.942857,0.000249,7]
[393187136,1762305043528,-288.942857,0.000249,7]
[393187137,1762305043538,-288.942857,0.000249,7]
[393187138,1762305043548,-151.0,0.000249,7]
[393187139,1762305043557,-151.0,0.000249,7]
[393187140,1762305043567,-151.0,0.000249,7]
[393187141,1762305043576,-500.0,0.00024901,2]
[393187142,1762305043585,-30168.5001347,0.00024902,3]
[393187143,1762305043594,-60337.0002694,0.00024912,3]
[393187144,1762305043604,-151.0,0.00024912,7]
[393187145,1762305043614,-151.0,0.00024912,7]
[393187146,1762305043625,-151.0,0.00024912,7]
[393187147,1762305043634,-151.0,0.00024916,7]
[393187148,1762305043644,-151.0,0.00024916,7]
[393187149,1762305043654,-151.0,0.00024916,7]
[393187150,1762305043664,-2000.0,0.00024916,2]
[393187151,1762305043673,-2001.18214903,0.00024916,2]
[393187152,1762305043683,-755.05357836,0.00024916,2]
[393187153,1762305043692,-2000.0,0.00024916,2]
[393187154,1762305043701,-215.89716196,0.00024916,2]
[393187155,1762305043711,-2000.0,0.00024916,2]
[393187156,1762305043720,-80860.8500667,0.00024922,2]
[393187157,1762305043730,-5947.0881092,0.00024922,2]
[393187158,1762305043740,-28334.4710257,0.00024922,2]
[393187159,1762305043749,-151.0,0.00024922,7]
[393187160,1762305043759,-151.0,0.00024922,7]
[393187161,1762305043768,-151.0,0.00024922,7]
[393187162,1762305043778,-1056.1906132,0.00024922,2]
[393187163,1762305043787,-151.0,0.00024922,7]
[393187164,1762305043796,-151.0,0.00024922,7]
[393187165,1762305043805,-151.0,0.00024922,7]
[393187166,1762305043815,-151.0,0.00024922,7]
[393187167,1762305043824,-288.942857,0.00024922,7]
[393187168,1762305043834,-288.942857,0.00024922,7]
[393187169,1762305043843,-288.942857,0.00024922,7]
[393187170,1762305043853,-288.942857,0.00024922,7]
[393187171,1762305043863,-151.000008,0.00024922,7]
[393187172,1762305043874,-151.0,0.00024922,7]
[393187173,1762305043883,-151.0,0.00024922,7]
[393187174,1762305043892,-151.0,0.00024922,7]
[393187175,1762305043902,-151.0,0.00024922,7]
[393187176,1762305043911,-151.0,0.00024922,7]
[393187177,1762305043921,-500.0,0.00024932,2]
[393187178,1762305043930,-500.0,0.00024962,2]
[393187179,1762305043939,-30168.5001347,0.0002497,3]
[393187180,1762305043949,-1743.49377648,0.0002497,2]
[393187181,1762305043958,-150.0,0.00024973,2]
[393187182,1762305043967,-162.03096013,0.00024973,2]
[393187183,1762305043981,-150.0,0.00024973,2]
[393187184,1762305043990,-500.0,0.00024979,2]
[393187185,1762305044001,-3574.5,0.0002498,2]
[393187186,1762305044011,-9999.99,0.0002498,2]
[393187187,1762305044021,-9999.99,0.0002498,2]
[393187188,1762305044031,-150.99,0.0002498,2]
[393187189,1762305044041,-1358.59,0.0002498,2]
[393187190,1762305044052,-1185.96,0.0002498,2]
[393187191,1762305044062,-1167.6,0.0002498,2]
[393187192,1762305044071,-1659.03,0.0002498,2]
[393187193,1762305044081,-9999.99,0.0002498,2]
[393187194,1762305044091,-12022.79,0.0002498,2]
[393187195,1762305044101,-299.99,0.0002498,7]
[393187196,1762305044111,-9999.99,0.0002498,2]
[393187197,1762305044120,-71717.21,0.0002498,2]
[393187198,1762305044132,-1589.35,0.0002498,2]
[393187199,1762305044142,-150.99,0.0002498,2]
[393187200,1762305044151,-1718.68,0.0002498,2]
[393187201,1762305044161,-9999.99,0.0002498,2]
[393187202,1762305044171,-396.73,0.0002498,2]
[393187203,1762305044180,-9999.99,0.0002498,2]
[393187204,1762305044190,-499.99,0.0002498,2]
[393187205,1762305044200,-50916.57,0.0002498,2]
[393187206,1762305044209,-8299.11,0.0002498,2]
[393187207,1762305044219,-999.99,0.0002498,2]
[393187208,1762305044228,-151.0,0.0002498,7]
[393187209,1762305044237,-151.0,0.0002498,7]
[393187210,1762305044246,-152.184127,0.0002498,7]
[393187211,1762305044256,-151.0,0.0002498,7]
[393187212,1762305044266,-151.0,0.0002498,7]
[393187213,1762305044275,-151.0,0.0002498,7]
[393187214,1762305044284,-151.0,0.0002498,7]
[393187215,1762305044293,-288.942857,0.0002498,7]
[393187216,1762305044303,-288.942857,0.0002498,7]
[393187217,1762305044318,-288.942857,0.0002498,7]
[393187218,1762305044328,-288.942857,0.0002498,7]
[393187219,1762305044337,-151.0,0.0002498,7]
[393187220,1762305044347,-151.0,0.0002498,7]
[393187221,1762305044356,-222.439029,0.0002498,7]
[393187222,1762305044365,-294.859152,0.0002498,7]
[393187223,1762305044380,-151.0,0.0002498,7]
[393187224,1762305044390,-735.48114248,0.00025,2]
[393187225,1762305044399,-165.20270292,0.00025,2]
[393187226,1762305044408,-3108.99367,0.00025,2]
[393187227,1762305044418,-501.0,0.00025,6]
[393187228,1762305044427,-333.6,0.00025041,2]
[393187229,1762305044437,-775.21966,0.0002506,2]
[393187230,1762305044446,-3500.0,0.00025259,2]
[393187231,1762305044456,-151.0,0.0002527,7]
[393187232,1762305044466,-775.21966,0.0002531,2]
[393187233,1762305044476,-807.90335755,0.00025321,2]
[393187234,1762305044485,-1000.0,0.00025321,2]
[393187235,1762305044494,-1000.0,0.00025321,2]
[393187236,1762305044503,-1000.0,0.00025321,2]
[393187237,1762305044513,-1000.0,0.00025321,2]
[393187238,1762305044523,-182.34726905,0.00025321,2]
[393187239,1762305044532,-1000.0,0.00025321,2]
[393187240,1762305044542,-2500.0,0.00025464,2]
[393187241,1762305044551,-514.0387098,0.00025464,2]
[393187242,1762305044560,-500.0,0.00025464,2]
[393187243,1762305044570,-250.0,0.00025521,2]
[393187244,1762305044579,-250.0,0.00025521,2]
[393187245,1762305044588,-775.21966,0.0002556,2]
[393187246,1762305044598,-996.0,0.00025613,2]
[393187247,1762305044607,-500.0,0.00025666,2]
[393187248,1762305044617,-151.0,0.00025765,7]
[393187249,1762305044629,-151.0,0.00025765,7]
[393187250,1762305044639,-151.0,0.00025765,7]
[393187251,1762305044648,-151.0,0.00025765,7]
[393187252,1762305044659,-151.0,0.00025765,7]
[393187253,1762305044670,-151.0,0.00025765,7]
[393187254,1762305044680,-288.942857,0.00025765,7]
[393187255,1762305044691,-288.942857,0.00025765,7]
[393187256,1762305044702,-288.942857,0.00025765,7]
[393187257,1762305044712,-288.942857,0.00025765,7]
[393187258,1762305044721,-151.0,0.00025765,7]
[393187259,1762305044731,-151.0,0.00025765,7]
[393187260,1762305044741,-151.0,0.00025772,7]
[393187261,1762305044751,-151.0,0.00025772,7]
[393187262,1762305044760,-151.0,0.00025772,7]
[393187263,1762305044770,-151.0,0.00025772,7]
[393187264,1762305044779,-151.0,0.00025772,7]
[393187265,1762305044788,-218.761857,0.00025772,7]
[393187266,1762305044797,-228.076989,0.00025772,7]
[393187267,1762305044807,-500.0,0.00025772,2]
[393187268,1762305044817,-151.0,0.00025772,7]
[393187269,1762305044826,-151.0,0.00025772,7]
[393187270,1762305044836,-151.0,0.00025772,7]
[393187271,1762305044845,-150.0,0.00025773,2]
[393187272,1762305044854,-151.0,0.00025776,7]
[393187273,1762305044863,-151.0,0.00025776,7]
[393187274,1762305044874,-151.0,0.00025776,7]
[393187275,1762305044884,-151.0,0.00025776,7]
[393187276,1762305044894,-500.0,0.00025781,2]
[393187277,1762305044903,-500.0,0.00025781,2]
[393187278,1762305044912,-151.0,0.00025782,7]
[393187279,1762305044921,-108369.0028497,0.00025782,2]
[393187280,1762305044931,-500.0,0.00025785,2]
[393187281,1762305044940,-151.0,0.00025786,7]
[393187282,1762305044949,-172.768944,0.00025786,7]
[393187283,1762305044959,-151.0,0.00025786,7]
[393187284,1762305044969,-151.000001,0.00025786,7]
[393187285,1762305044977,-151.0,0.00025786,7]
[393187286,1762305044988,-151.0,0.00025786,7]
[393187287,1762305044997,-151.0,0.00025786,7]
[393187288,1762305045007,-163.288625,0.00025786,7]
[393187289,1762305045016,-4000.0,0.00025807,2]
[393187290,1762305045025,-775.21966,0.0002581,2]
[393187291,1762305045034,-500.0,0.00025868,2]
[393187292,1762305045044,-8005.123,0.00025868,11]
[393187293,1762305045054,-380.798,0.00025868,11]
[393187294,1762305045063,-1500.0,0.00025868,2]
[393187295,1762305045073,-1500.0,0.00025868,2]
[393187296,1762305045082,-1500.0,0.00025868,2]
[393187297,1762305045091,-1014.70956381,0.00025868,2]
[393187298,1762305045100,-1500.0,0.00025868,2]
[393187299,1762305045110,-20082.02777138,0.00025879,2]
[393187300,1762305045119,-593.19391381,0.0002599,2]
[393187301,1762305045130,-4468.2095011,0.00026,2]
[393187302,1762305045139,-4138.65,0.00026,2]
[393187303,1762305045149,-213.77330891,0.00026,2]
[393187304,1762305045159,-160.91066148,0.00026,2]
[393187305,1762305045169,-151.0,0.00026,7]
[393187306,1762305045178,-151.0,0.00026,7]
[393187307,1762305045187,-151.0,0.00026,7]
[393187309,1762305045196,-151.0,0.00026,7]
[393187310,1762305045205,-151.0,0.00026,7]
[393187311,1762305045215,-288.942857,0.00026,7]
[393187312,1762305045224,-288.942857,0.00026,7]
[393187313,1762305045232,-288.942857,0.00026,7]
[393187314,1762305045241,-288.94285,0.00026,7]
[393187315,1762305045250,-157.0,0.00026,5]
[393187316,1762305045259,-157.0,0.00026,5]
[393187317,1762305045267,-2151.16713156,0.00026012,2]
[393187318,1762305045276,-253.80849945,0.00026068,2]
[393187319,1762305045286,-350.0,0.00026068,2]
[393187320,1762305045294,-4609.0,0.00026119,2]
[393187321,1762305045307,-151.0,0.0002612,7]
[393187322,1762305045320,-151.0,0.0002612,7]
[393187323,1762305045329,-151.0,0.00026121,7]
[393187324,1762305045338,-156.16,0.00026156,7]
[393187325,1762305045347,-708.04145389,0.00026313,2]
[393187326,1762305045356,-250.0,0.00026321,2]
[393187327,1762305045366,-1180.85222632,0.00026355,2]
[393187328,1762305045377,-2000.0,0.00026416,2]
[393187329,1762305045386,-864.43774244,0.00026416,2]
[393187330,1762305045395,-706.9778576,0.00026416,2]
[393187331,1762305045404,-2000.0,0.00026416,2]
[393187332,1762305045413,-11784.68355286,0.00026423,2]
[393187333,1762305045422,-11261.21723379,0.00026454,2]
[393187334,1762305045431,-333.6,0.00026493,2]
[393187335,1762305045441,-999.04,0.00026494,2]
[393187336,1762305045451,-500.0,0.00026571,2]
[393187337,1762305045460,-151.0,0.00026572,7]
[393187338,1762305045470,-500.0,0.00026581,2]
[393187339,1762305045479,-500.0,0.00026591,2]
[393187340,1762305045488,-531.31721806,0.00026616,2]
[393187341,1762305045498,-167.92,0.00026616,2]
[393187342,1762305045507,-441.45,0.00026676,2]
[393187343,1762305045516,-2000.0,0.000267,2]
[393187344,1762305045525,-1000.0,0.00026829,2]
[393187345,1762305045535,-250.0,0.00026868,2]
[393187346,1762305045544,-274.03961248,0.00026964,2]
[393187347,1762305045553,-449.20773238,0.00026964,2]
[393187348,1762305045562,-250.0,0.00027,2]
[393187349,1762305045572,-1020.74370514,0.00027,2]
[393187350,1762305045581,-530.0,0.00027,2]
[393187351,1762305045591,-332.88466737,0.00027028,2]
[393187352,1762305045600,-1000.0,0.000271,2]
[393187353,1762305045610,-150.0,0.00027113,2]
[393187354,1762305045619,-4057.37263269,0.0002739,2]
[393187355,1762305045632,-8014.94766008,0.0002739,2]
[393187356,1762305045641,-3199.31947073,0.0002739,2]
[393187357,1762305045650,-33081.82,0.00027397,2]
[393187358,1762305045659,-356.47,0.00027397,2]
[393187359,1762305045669,-300.0,0.00027397,2]
[393187360,1762305045678,-152.579302,0.00027397,31]
[393187361,1762305045687,-151.0,0.00027397,31]
[393187362,1762305045696,-151.0,0.00027397,31]
[393187363,1762305045705,-151.0,0.00027397,31]
[393187364,1762305045715,-151.0,0.00027397,31]
[393187365,1762305045724,-151.0,0.00027397,31]
[393187366,1762305045733,-151.0,0.00027397,31]
[393187367,1762305045742,-151.0,0.00027397,31]
[393187368,1762305045751,-151.0,0.00027397,31]
[393187369,1762305045760,-151.0,0.00027397,31]
[393187370,1762305045769,-163.303655,0.00027397,31]
[393187371,1762305045778,-170.63742,0.00027397,31]
[393187372,1762305045787,-151.0,0.00027397,31]
[393187373,1762305045796,-151.0,0.00027397,31]
[393187374,1762305045805,-289.888631,0.00027397,31]
[393187375,1762305045814,-162.772792,0.00027397,31]
[393187376,1762305045824,-512.24,0.00027397,2]
[393187377,1762305045833,-293.699832,0.00027397,31]
[393187378,1762305045842,-151.0,0.00027397,31]
[393187379,1762305045851,-151.0,0.00027397,31]
[393187380,1762305045860,-153.072125,0.00027397,31]
[393187381,1762305045869,-198.419581,0.00027397,31]
[393187382,1762305045879,-151.0,0.00027397,31]
[393187383,1762305045889,-151.0,0.00027397,31]
[393187384,1762305045898,-151.0,0.00027397,31]
[393187385,1762305045907,-151.692044,0.00027397,31]
[393187386,1762305045916,-151.0,0.00027397,31]
[393187387,1762305045925,-153.464738,0.00027397,31]
[393187388,1762305045934,-151.0,0.00027397,31]
[393187389,1762305045943,-151.0,0.00027397,31]
[393187390,1762305045952,-180.74643,0.00027397,31]
[393187391,1762305045961,-151.0,0.00027397,31]
[393187392,1762305045970,-151.0,0.00027397,31]
[393187393,1762305045979,-151.0,0.00027397,31]
[393187394,1762305045988,-151.0,0.00027397,31]
[393187395,1762305045998,-151.0,0.00027397,31]
[393187396,1762305046007,-151.0,0.00027397,31]
[393187397,1762305046017,-151.0,0.00027397,31]
[393187398,1762305046025,-166.178201,0.00027397,31]
[393187399,1762305046034,-738.059033,0.00027397,31]
[393187400,1762305046044,-151.0,0.00027397,31]
[393187401,1762305046053,-738.059033,0.00027397,31]
[393187402,1762305046062,-151.0,0.00027397,31]
[393187403,1762305046071,-738.059033,0.00027397,31]
[393187404,1762305046080,-151.0,0.00027397,31]
[393187406,1762305046089,-738.059033,0.00027397,31]
[393187408,1762305046099,-151.0,0.00027397,31]
[393187410,1762305046108,-738.059033,0.00027397,31]
[393187412,1762305046117,-151.0,0.00027397,31]
[393187415,1762305046128,-151.0,0.00027397,31]
[393187416,1762305046137,-738.059033,0.00027397,31]
[393187418,1762305046146,-151.0,0.00027397,31]
[393187420,1762305046155,-151.0,0.00027397,31]
[393187422,1762305046164,-738.059033,0.00027397,31]
[393187424,1762305046177,-151.0,0.00027397,31]
[393187426,1762305046185,-151.0,0.00027397,31]
[393187429,1762305046197,-738.059033,0.00027397,31]
[393187431,1762305046206,-151.0,0.00027397,31]
[393187433,1762305046215,-151.0,0.00027397,31]
[393187435,1762305046224,-738.059033,0.00027397,31]
[393187437,1762305046233,-151.0,0.00027397,31]
[393187439,1762305046242,-151.0,0.00027397,31]
[393187441,1762305046251,-738.059033,0.00027397,31]
[393187443,1762305046259,-151.0,0.00027397,31]
[393187445,1762305046268,-151.0,0.00027397,31]
[393187447,1762305046278,-738.059033,0.00027397,31]
[393187448,1762305046288,-151.0,0.00027397,31]
[393187451,1762305046298,-154.057771,0.00027397,31]
[393187452,1762305046309,-151.0,0.00027397,31]
[393187455,1762305046319,-13.5613022,0.00027397,31]
[393187507,1762305046791,-477.65212186,0.00024199,2]
[393187509,1762305046800,-264.812832,0.00024412,7]
[393187511,1762305046809,-264.812832,0.00024412,7]
[393187513,1762305046818,-264.812832,0.000248,7]
[393187515,1762305046827,-264.812832,0.000248,7]
[393187517,1762305046836,-264.812832,0.00024922,7]
[393187519,1762305046846,-179.73273395,0.00024922,7]
[393187521,1762305046857,-85.08009805,0.00024922,7]
[393187523,1762305046866,-264.812832,0.0002498,7]
[393187525,1762305046876,-264.812832,0.0002498,7]
[393187527,1762305046885,-264.812832,0.00025782,7]
[393187529,1762305046895,-6.36980837,0.00025782,7]
[393187532,1762305046906,-258.44302363,0.00025782,7]
[393187534,1762305046916,-252.75389837,0.00027397,31]
[393187556,1762305047139,-264.812832,0.00024412,7]
[393187557,1762305047151,-264.812832,0.000248,7]
[393187558,1762305047160,-4.3743349,0.00024922,7]
[393187559,1762305047172,-260.4384971,0.00024922,7]
[393187560,1762305047182,-171.31170319,0.00024922,7]
[393187561,1762305047193,-93.50112881,0.00024922,7]
[393187562,1762305047203,-264.812832,0.0002498,7]
[393187563,1762305047212,-264.812832,0.0002498,7]
[393187564,1762305047221,-264.812832,0.00025782,7]
[393187565,1762305047230,-111.87037521,0.00025782,7]